Cogmind - Beta 13 @@@ ROGUE MODE // 2024.05.08 @ 14:02:02 Player: Gabe+Kate4EVR Result: Destroyed by B-99 Colossus with Linear Accelerator Performance ------------- Evolutions (9) 4500 Regions Visited (12) 2400 Robots Destroyed (85) 425 Value Destroyed (2225) 2225 Prototype IDs (11) 220 Alien Tech Used (0) 0 Bonus (84) 84 TOTAL SCORE: 9854 Bonus ------- High Alert Combat Kills 99 Friendly Fire -15 Cogmind --------- Core Integrity 0/1600 Matter 54/300 Energy 41/100 System Corruption 11% Temperature Cool (0) Movement Core (50) Location -1/Access Parts ------- > --- POWER (3) -------- (None) > --- PROPULSION (12) -- (None) > --- UTILITY (8) ------ Advanced Signal Interpreter Improved Hacking Suite > --- WEAPON (2) ------- (None) > --- INVENTORY (5) ---- Antimatter Reactor Cooled Field Propulsion Drive Advanced Power Amplifier Advanced Sensor Array Dirty Datajack (20) Peak State ------------ > --- POWER ------------ Micro Fission Core Micro Antimatter Reactor > --- PROPULSION ------- Field Propulsion Drive Impulse Thruster Cooled Field Propulsion Drive Field Propulsion Array Impulse Thruster Array Impulse Thruster Array > --- UTILITY ---------- Advanced Power Amplifier Medium Storage Unit Advanced Signal Interpreter Advanced Terrain Scan Processor Advanced Phase Shifter Improved Hacking Suite Improved Hacking Suite > --- WEAPON ----------- (None) > --- INVENTORY -------- Antimatter Reactor Advanced Weight Redist. System Advanced Sensor Array Improved Reaction Control System Dirty Datajack Improved Plasma Cutter [Rating: 120] Favorites ----------- Power Deuterium Engine Engine Deuterium Engine Power Core Light Fission Core Reactor Micro Antimatter Reactor Propulsion Aluminum Leg Treads Improved Treads Leg Aluminum Leg Wheel Wheel Hover Unit Cooled Airjet Flight Unit Cesium-ion Thruster Utility Hacking Suite Device Reaction Control System Storage Medium Storage Unit Processor Advanced Signal Interpreter Hackware Hacking Suite Protection Layered Light Armor Plating Weapon Gatling Laser Energy Gun Gatling Laser Ballistic Gun Heavy Assault Rifle Launcher Improved Grenade Launcher Special Weapon Improved Plasma Cutter Impact Weapon Great Maul Special Melee Weapon Dirty Datajack Build | -11 -10 -9 -8 -7 -6 -5 -4 -4 -4 -3 -2 -1 ------- Run | Yrd Mat Mat Mat Fac Fac Fac Fac Upp Upp Res Res Acc Slots Evolved 18 | . . 2 2 2 2 2 2 . . 2 2 2 Power 2 | . . . . . . 1 . . . 1 . . Propulsion 10 | . . . . 2 2 . 2 . . 1 1 2 Utility 6 | . . 2 2 . . 1 . . . . 1 . Weapon . | . . . . . . . . . . . . . Parts Attached 204 | 6 14 46 41 10 10 8 27 1 . 28 6 7 Power 32 | 1 3 4 4 1 . 3 12 . . 4 . . Engine 12 | 1 3 4 1 . . 1 2 . . . . . Core 16 | . . . 3 1 . 2 9 . . 1 . . Reactor 4 | . . . . . . . 1 . . 3 . . Propulsion 75 | 2 5 17 13 7 5 2 4 . . 14 3 3 Treads 2 | . . 2 . . . . . . . . . . Leg 26 | . 3 15 8 . . . . . . . . . Wheel 4 | 2 . . 2 . . . . . . . . . Hover 1 | . . . . 1 . . . . . . . . Flight 42 | . 2 . 3 6 5 2 4 . . 14 3 3 Utility 59 | 1 2 14 9 1 3 3 11 . . 9 3 3 Device 39 | . 1 6 7 1 1 2 10 . . 7 1 3 Storage 8 | 1 1 5 1 . . . . . . . . . Processor 3 | . . 1 . . . . . . . . 2 . Hackware 6 | . . 2 1 . . . 1 . . 2 . . Protection 3 | . . . . . 2 1 . . . . . . Artifact . | . . . . . . . . . . . . . Weapon 38 | 2 4 11 15 1 2 . . 1 . 1 . 1 Energy Gun 21 | 1 4 5 8 1 2 . . . . . . . Energy Cannon . | . . . . . . . . . . . . . Ballistic Gun 12 | 1 . 6 5 . . . . . . . . . Ballistic Cannon . | . . . . . . . . . . . . . Launcher 1 | . . . . . . . . . . 1 . . Special Weapon 1 | . . . . . . . . . . . . 1 Impact Weapon 2 | . . . 2 . . . . . . . . . Slashing Weapon . | . . . . . . . . . . . . . Piercing Weapon . | . . . . . . . . . . . . . Special Melee Weapon 1 | . . . . . . . . 1 . . . . Unidentified Prototypes 8 | . 1 1 2 2 . . 1 . . 1 . . Parts Lost 61 | . 2 6 8 . 3 . 7 . 1 11 2 21 Power 6 | . . 1 1 . . . . . . 1 . 3 Propulsion 28 | . 1 1 3 . 2 . 4 . 1 5 1 10 Utility 17 | . . 1 2 . 1 . 2 . . 3 1 7 Weapon 10 | . 1 3 2 . . . 1 . . 2 . 1 Highest Loss Streak 11 | . 1 2 7 . 2 . 3 . 1 5 2 11 To Critical Strikes 2 | . . 1 . . . . . . . 1 . . Average Slot Usage (%) 92 | . 91 97 92 99 92 92 89 80 84 82 77 44 Engine 5 | . 14 10 2 . . 3 3 . . . . . Core 3 | . . . 5 6 6 5 6 10 10 5 4 1 Leg 9 | . 12 21 12 . . . . . . . . . Wheel 1 | . 15 . 1 . . . . . . . . . Flight 12 | . . . 1 29 34 29 32 26 26 32 32 15 Device 13 | . 6 11 15 15 13 20 20 15 15 16 10 4 Storage 8 | . 14 11 8 7 6 5 5 5 5 4 4 3 Hackware 16 | . . 20 27 23 15 11 10 15 15 10 8 7 Energy Gun 12 | . 21 14 12 15 12 11 9 5 5 1 . . Ballistic Gun 3 | . 6 7 4 . . . . . . . . . Naked Turns . | . . . . . . . . . . . . . Heaviest Build 57 | 12 22 57 29 26 30 40 39 32 32 45 37 36 Greatest Support 68 | 20 20 43 30 31 43 46 56 38 38 67 52 68 Greatest Overweight (x) 7 | 3 3 2 7 1 1 . 1 . . 1 . . Average Overweight (x) . | . . 1 1 . . . . . . . . . Largest Inventory Capacity 20 | 8 10 20 10 10 10 10 10 10 10 10 10 10 Average Capacity 9 | 7 8 10 9 10 10 10 10 10 10 10 10 9 Most Carried 11 | 6 10 11 10 10 10 10 10 10 10 10 10 10 Average Carried 9 | 2 7 9 9 9 9 9 9 9 10 9 7 5 Final Capacity 10 | 8 10 10 10 10 10 10 10 10 10 10 10 5 Final Carried 10 | 6 10 10 10 10 10 10 10 10 10 9 10 5 Class Distribution -------------------- 43% | Hacker-Mutant 23% | Hacker-Sprinter 16% | Scavenger-Sprinter 12% | Mutant 4% | Scavenger-Mutant Dominant Class ---------------- Mutant | -10/Materials Hacker-Mutant | -9/Materials Hacker-Mutant | -8/Materials Hacker-Sprinter | -7/Factory Hacker-Sprinter | -6/Factory Hacker-Sprinter | -5/Factory Scavenger-Sprinter | -4/Factory Hacker-Sprinter | -4/Upper Caves Hacker-Sprinter | -4/Upper Caves Scavenger-Sprinter | -3/Research Scavenger-Sprinter | -2/Research Hacker-Sprinter | -1/Access Resources | -11 -10 -9 -8 -7 -6 -5 -4 -4 -4 -3 -2 -1 ----------- Run | Yrd Mat Mat Mat Fac Fac Fac Fac Upp Upp Res Res Acc Matter Collected 2216 | 233 187 660 554 100 30 135 231 30 . 55 . 1 Remotely 50 | . . 50 . . . . . . . . . . Salvage Created 3031 | . 325 1495 531 173 131 52 154 . . 170 . . Parts 177 | . 21 99 28 9 2 1 . . . 17 . . Haulers Intercepted 11 | . . 3 4 1 1 . 2 . . . . . Recyclers Shooed 1 | . . . 1 . . . . . . . . . Parts Field Recycled . | . . . . . . . . . . . . . Retrieved Matter . | . . . . . . . . . . . . . Parts Self-Destructed . | . . . . . . . . . . . . . Prevented . | . . . . . . . . . . . . . Kills | -11 -10 -9 -8 -7 -6 -5 -4 -4 -4 -3 -2 -1 ------- Run | Yrd Mat Mat Mat Fac Fac Fac Fac Upp Upp Res Res Acc Combat Hostiles Destroyed 61 | . 12 32 7 . 1 2 . . . 7 . . Guns 52 | . 12 32 6 . . 2 . . . . . . AOE 8 | . . . . . 1 . . . . 7 . . Classes Destroyed 10 | . 2 7 1 . . . . . . . . . Worker 5 | . . 1 1 3 . . . . . . . . Builder 1 | . . . 1 . . . . . . . . . Hauler 11 | . . 3 4 1 1 . 2 . . . . . Recycler 1 | . . 1 . . . . . . . . . . Mechanic 3 | . . 1 1 1 . . . . . . . . Operator 2 | . . 1 . . . . . . . 1 . . Watcher 1 | . . 1 . . . . . . . . . . Swarmer 23 | . 6 8 . . . 2 . . . 7 . . Grunt 29 | . 6 17 5 . 1 . . . . . . . Sentry 9 | . . 7 2 . . . . . . . . . Best Kill Streak 4 | . 3 4 2 3 1 1 1 . . 4 . . Combat Bots Only 4 | . 3 4 2 . 1 1 . . . 4 . . Max Kills in Single Turn 4 | . 1 2 1 1 1 1 1 . . 4 . . Gunslinging 1 | . . 1 . . . . . . . . . . Exploded 4 | . . . . . 1 . . . . 4 . . Melee . | . . . . . . . . . . . . . Uniques/NPCs Destroyed . | . . . . . . . . . . . . . Combat | -11 -10 -9 -8 -7 -6 -5 -4 -4 -4 -3 -2 -1 -------- Run | Yrd Mat Mat Mat Fac Fac Fac Fac Upp Upp Res Res Acc Hostile Shots Fired 884 | . 47 229 54 26 54 10 34 . 5 129 42 254 Missed 414 | . 12 70 14 17 32 5 17 . 3 82 27 135 Damage Taken 8873 | . 407 1921 1174 102 416 92 493 . 40 1216 262 2750 Core 3130 | . 92 387 384 20 93 . 139 . . 351 50 1614 Absorbed by Shields 39 | . . . . 39 . . . . . . . . Regen/Repaired (Parts) 341 | . . 105 209 . . . . . . . 27 . Core Remaining (%) 73 | 100 63 3 30 97 89 100 . . 87 73 96 . Volleys Fired 255 | . 31 122 67 14 6 4 7 . . 4 . . Largest 2 | . 2 2 2 2 2 2 2 . . 2 . . Hottest 143 | . 130 130 121 136 143 143 143 . . 99 . . Shots Fired 489 | . 60 237 122 28 12 8 14 . . 8 . . Gun 485 | . 60 237 122 28 12 8 14 . . 4 . . Cannon . | . . . . . . . . . . . . . Launcher 4 | . . . . . . . . . . 4 . . Special . | . . . . . . . . . . . . . Kinetic 121 | . 15 63 43 . . . . . . . . . Thermal 281 | . 45 91 79 28 12 8 14 . . 4 . . Explosive 4 | . . . . . . . . . . 4 . . Electromagnetic 83 | . . 83 . . . . . . . . . . Robot Hit Streak 10 | . 7 10 9 7 5 3 6 . . 5 . . Robot Miss Streak 6 | . 3 6 5 4 3 4 1 . . 1 . . Penetration Max . | . . . . . . . . . . . . . Secondary Targets 3 | . . 3 . . . . . . . . . . Max Gunslinging Chain 1 | . . 1 . . . . . . . . . . Shots Hit Robots 300 | . 35 134 81 18 8 7 12 . . 5 . . Core Hits 139 | . 18 58 28 9 7 2 4 . . 13 . . Critical Kills . | . . . . . . . . . . . . . Critical Parts Destroyed . | . . . . . . . . . . . . . Critical Strikes 7 | . 3 2 . 2 . . . . . . . . Burn 7 | . 3 2 . 2 . . . . . . . . Melee Attacks 4 | . . . 4 . . . . . . . . . Impact 4 | . . . 4 . . . . . . . . . Slashing . | . . . . . . . . . . . . . Piercing . | . . . . . . . . . . . . . Sneak Attacks . | . . . . . . . . . . . . . Combat Hostiles . | . . . . . . . . . . . . . Follow-up Attacks . | . . . . . . . . . . . . . Damage Inflicted 5863 | . 455 2203 1542 320 321 151 276 . . 577 . 18 Guns 4887 | . 455 2181 1321 320 148 151 276 . . 35 . . Cannons . | . . . . . . . . . . . . . Explosions 737 | . . 22 . . 173 . . . . 542 . . Melee 221 | . . . 221 . . . . . . . . . Ramming 18 | . . . . . . . . . . . . 18 Kinetic 1395 | . 103 632 660 . . . . . . . . . Thermal 2806 | . 352 863 661 320 148 151 276 . . 35 . . Explosive 715 | . . . . . 173 . . . . 542 . . Electromagnetic 708 | . . 708 . . . . . . . . . . Impact 221 | . . . 221 . . . . . . . . . Slashing . | . . . . . . . . . . . . . Piercing . | . . . . . . . . . . . . . Highest Corruption 11 | . . 1 . . . . . . . 2 . 11 Average Corruption 1 | . . 1 . . . . . . . 1 . 5 Corruption Purged . | . . . . . . . . . . . . . Corruption Blocked . | . . . . . . . . . . . . . Effects 12 | . . 3 . . . . . . . 7 . 2 Message Errors 1 | . . 1 . . . . . . . . . . Matter Fused 4 | . . . . . . . . . . 3 . 1 Heat Flow Errors 1 | . . . . . . . . . . 1 . . Energy Discharges 2 | . . . . . . . . . . 1 . 1 Data Loss (minor) 3 | . . 1 . . . . . . . 2 . . Weapon Failures 1 | . . 1 . . . . . . . . . . Overload Shots . | . . . . . . . . . . . . . Overflow Damage 66 | . . . 44 . . . . . . 22 . . Projectiles . | . . . . . . . . . . . . . Explosions 22 | . . . . . . . . . . 22 . . Melee 44 | . . . 44 . . . . . . . . . Knockbacks 1 | . . . 1 . . . . . . . . . Impact 1 | . . . 1 . . . . . . . . . Kinetic . | . . . . . . . . . . . . . Secondary . | . . . . . . . . . . . . . Self-Inflicted Damage 17 | . . . . . . . . . . 10 . 7 Shots 1 | . . . . . . . . . . 1 . . Rammed 6 | . . . . . . . . . . . . 6 Targets Rammed 6 | . . . . . . . . . . . . 6 Kicked . | . . . . . . . . . . . . . Crushed . | . . . . . . . . . . . . . Highest Temperature 457 | . 251 270 51 173 409 172 33 . . 457 21 130 Average Temperature 86 | . 81 58 15 67 125 68 14 . . 168 11 83 Received Heat Transfer 1506 | . 222 711 207 27 90 27 9 . 9 141 . 63 Effects 8 | . . . . . 2 . . . . 6 . . Shutdowns 4 | . . . . . 1 . . . . 3 . . Energy Bleed 2 | . . . . . . . . . . 2 . . Damage (minor) 2 | . . . . . 1 . . . . 1 . . Siege Activations . | . . . . . . . . . . . . . Robots Corrupted . | . . . . . . . . . . . . . Combat Hostiles . | . . . . . . . . . . . . . Parts Fried 1 | . . 1 . . . . . . . . . . Impact Corruptions 3 | . . . 3 . . . . . . . . . Robots Melted 1 | . . . . . . . 1 . . . . . Combat Hostiles . | . . . . . . . . . . . . . Parts Melted 13 | . 2 6 3 1 . . 1 . . . . . Heat Transferred 7258 | . 1184 2307 1554 864 336 329 610 . . 74 . . Parts Sabotaged . | . . . . . . . . . . . . . Parts Stolen . | . . . . . . . . . . . . . Parts Stripped . | . . . . . . . . . . . . . Power Chain Reactions 1 | . . 1 . . . . . . . . . . Alert | -11 -10 -9 -8 -7 -6 -5 -4 -4 -4 -3 -2 -1 ------- Run | Yrd Mat Mat Mat Fac Fac Fac Fac Upp Upp Res Res Acc Peak Influence 683 | . 280 533 219 51 447 253 69 . . 683 414 423 Initial 274 | . . 18 123 6 7 213 . . . 12 274 248 Average 159 | . 50 281 56 24 169 227 16 . . 447 306 336 Maximum Alert Level 2 | . 1 2 1 . 2 1 . . . 2 2 2 Low Security (%) 60 | 100 90 22 98 100 49 3 100 . . 16 . . Level 1 29 | . 9 58 1 . 44 96 . . . 18 99 83 Level 2 10 | . . 19 . . 6 . . . . 65 . 16 Level 3 . | . . . . . . . . . . . . . Level 4 . | . . . . . . . . . . . . . Level 5 . | . . . . . . . . . . . . . High Security . | . . . . . . . . . . . . . Max Security . | . . . . . . . . . . . . . Squads Dispatched 46 | . 2 6 4 4 10 6 8 . . 4 1 1 Investigation 19 | . 1 3 1 1 4 3 2 . . 3 1 . Extermination 6 | . . . . 1 . 1 3 . . 1 . . Reinforcement 17 | . 1 3 3 1 3 2 3 . . . . 1 Assault 1 | . . . . . 1 . . . . . . . Garrison 3 | . . . . 1 2 . . . . . . . Intercept . | . . . . . . . . . . . . . Searches Triggered 1 | . . . . . . . . . . 1 . . Construction Impeded . | . . . . . . . . . . . . . Haulers Reinforced 5 | . . . . 1 1 2 1 . . . . . Active Scanning Responses . | . . . . . . . . . . . . . Cargo Convoy Interrupts . | . . . . . . . . . . . . . Stealth | -11 -10 -9 -8 -7 -6 -5 -4 -4 -4 -3 -2 -1 --------- Run | Yrd Mat Mat Mat Fac Fac Fac Fac Upp Upp Res Res Acc Distress Signals 21 | . 1 5 4 2 . 2 . . . 2 1 4 Communications Jammed 22 | . . . . . . . . . . 22 . . Distress Signals 21 | . . . . . . . . . . 21 . . Times Spotted 310 | . 20 59 12 13 33 27 15 . 4 68 27 32 Peak Tracking Total 29 | . 6 8 3 3 12 13 4 . 4 29 20 15 Tactical Retreats 36 | . 1 7 2 1 6 . . . . 12 2 5 Traps | -11 -10 -9 -8 -7 -6 -5 -4 -4 -4 -3 -2 -1 ------- Run | Yrd Mat Mat Mat Fac Fac Fac Fac Upp Upp Res Res Acc Traps Triggered 12 | . 1 1 2 . 2 2 1 . . 3 . . Indirectly . | . . . . . . . . . . . . . Trap Hack Attempts . | . . . . . . . . . . . . . Triggered . | . . . . . . . . . . . . . Disarmed . | . . . . . . . . . . . . . Reprogrammed . | . . . . . . . . . . . . . Reused . | . . . . . . . . . . . . . Traps Extracted . | . . . . . . . . . . . . . Installed . | . . . . . . . . . . . . . Triggered . | . . . . . . . . . . . . . Machines | -11 -10 -9 -8 -7 -6 -5 -4 -4 -4 -3 -2 -1 ---------- Run | Yrd Mat Mat Mat Fac Fac Fac Fac Upp Upp Res Res Acc Machines Disabled 4 | . . 2 . . 2 . . . . . . . Max in Single Turn 2 | . . 1 . . 2 . . . . . . . Garrison Access 2 | . . . . 1 1 . . . . . . . Machines Repaired . | . . . . . . . . . . . . . Machines Dismantled . | . . . . . . . . . . . . . Machines Sabotaged . | . . . . . . . . . . . . . Overloaded Fab Kills . | . . . . . . . . . . . . . Hacking | -11 -10 -9 -8 -7 -6 -5 -4 -4 -4 -3 -2 -1 --------- Run | Yrd Mat Mat Mat Fac Fac Fac Fac Upp Upp Res Res Acc Machines Accessed 50 | . 4 8 6 2 6 1 5 1 . 12 4 1 Terminals 24 | . 3 5 3 . 1 1 2 . . 5 3 1 Fabricators 5 | . . . . 1 2 . . . . 2 . . Repair Stations 7 | . . 1 2 . 1 . . . . 2 1 . Recycling Units 9 | . 1 1 1 . 1 . 2 . . 3 . . Scanalyzers 2 | . . 1 . . 1 . . . . . . . Garrison Access 2 | . . . . 1 . . 1 . . . . . Total Hacks 124 | . 9 24 14 7 16 4 13 1 . 23 12 1 Successful 63 | . 3 15 10 4 7 2 4 1 . 12 5 . Failed 61 | . 6 9 4 3 9 2 9 . . 11 7 1 Catastrophic 5 | . . 2 . . 1 . . . . 1 1 . Database Lockouts . | . . . . . . . . . . . . . Manual 44 | . 6 11 7 . 1 4 2 . . 7 5 1 Terminals 55 | . 7 12 8 . 1 4 5 . . 10 7 1 Fabricators 15 | . . . . 4 5 . . . . 6 . . Repair Stations 22 | . . 4 5 . 4 . . . . 4 5 . Recycling Units 14 | . 2 1 1 . 2 . 5 . . 3 . . Scanalyzers 11 | . . 7 . . 4 . . . . . . . Garrison Access 6 | . . . . 3 . . 3 . . . . . Terminal Hacks 21 | . 2 3 5 . . 2 2 1 . 4 2 . Record 2 | . . . . . . . 1 . . 1 . . Robot Analysis 1 | . . . 1 . . . . . . . . . Prototype ID Bank 1 | . 1 . . . . . . . . . . . Open Door 1 | . . . . . . . . 1 . . . . Open DSF 1 | . . . . . . . . . . . 1 . Level Access Points 1 | . . . . . . . . . . 1 . . Alert Level 2 | . . 1 . . . . . . . 1 . . Unreport Threat 12 | . 1 2 4 . . 2 1 . . 1 1 . Fabricator Hacks 10 | . . . . 3 3 . . . . 4 . . Load Schematic 5 | . . . . 1 2 . . . . 2 . . Build 5 | . . . . 2 1 . . . . 2 . . Repair Station Hacks 14 | . . 4 4 . 1 . . . . 2 3 . Scan Component 8 | . . 2 2 . 1 . . . . 1 2 . Repair 6 | . . 2 2 . . . . . . 1 1 . Recycling Unit Hacks 8 | . 1 1 1 . 1 . 2 . . 2 . . Retrieve Components 8 | . 1 1 1 . 1 . 2 . . 2 . . Scanalyzer 9 | . . 7 . . 2 . . . . . . . Insert Component 4 | . . 3 . . 1 . . . . . . . Analyze 5 | . . 4 . . 1 . . . . . . . Garrison Access Hacks 1 | . . . . 1 . . . . . . . . Seal Access 1 | . . . . 1 . . . . . . . . Unauthorized Hacks . | . . . . . . . . . . . . . Terminals . | . . . . . . . . . . . . . Fabricators . | . . . . . . . . . . . . . Repair Stations . | . . . . . . . . . . . . . Recycling Units . | . . . . . . . . . . . . . Scanalyzers . | . . . . . . . . . . . . . Garrison Access . | . . . . . . . . . . . . . Data Cores Recovered 4 | . . 1 . . . . 2 . . 1 . . Used 1 | . . 1 . . . . . . . . . . Hacking Detections 40 | . 3 6 3 2 6 1 5 . . 10 3 1 Full Trace Events 14 | . . 2 . 1 4 1 2 . . 3 1 . Feedback Events 1 | . . 1 . . . . . . . . . . Corruption 1 | . . 1 . . . . . . . . . . Feedback Blocked . | . . . . . . . . . . . . . Robot Schematics Acquired . | . . . . . . . . . . . . . Robots Built . | . . . . . . . . . . . . . Authchips . | . . . . . . . . . . . . . Time . | . . . . . . . . . . . . . Total Robot Build Rating . | . . . . . . . . . . . . . Part Schematics Acquired 4 | . . 3 . . 1 . . . . . . . Parts Built 5 | . . . . 2 1 . . . . 2 . . Authchips . | . . . . . . . . . . . . . Time 597 | . . . . 286 187 . . . . 124 . . Total Part Build Rating 30 | . . . . 9 7 . . . . 14 . . Parts Repaired 5 | . . 2 2 . . . . . . . 1 . Time 262 | . . 70 45 . . . . . . 108 39 . Parts Recycled . | . . . . . . . . . . . . . Recycled Matter . | . . . . . . . . . . . . . Retrieved Matter . | . . . . . . . . . . . . . Retrieved Components 24 | . 3 5 9 . . . 4 . . 3 . . Parts Scanalyzed 4 | . . 3 . . 1 . . . . . . . Part Schematics Acquired 4 | . . 3 . . 1 . . . . . . . Parts Damaged . | . . . . . . . . . . . . . Bothacking | -11 -10 -9 -8 -7 -6 -5 -4 -4 -4 -3 -2 -1 ------------ Run | Yrd Mat Mat Mat Fac Fac Fac Fac Upp Upp Res Res Acc Used RIF Installer . | . . . . . . . . . . . . . Robots Hacked . | . . . . . . . . . . . . . Non-combat . | . . . . . . . . . . . . . Combat . | . . . . . . . . . . . . . Robot Hacks Applied . | . . . . . . . . . . . . . Relay Couplers Released 1 | . . . . . 1 . . . . . . . Machine Destruction 1 | . . . . . 1 . . . . . . . Fabnet Peak Effective % . | . . . . . . . . . . . . . Robots Rewired 1 | . . . . 1 . . . . . . . . Allies Hacked . | . . . . . . . . . . . . . Hacks Repelled . | . . . . . . . . . . . . . Allies | -11 -10 -9 -8 -7 -6 -5 -4 -4 -4 -3 -2 -1 -------- Run | Yrd Mat Mat Mat Fac Fac Fac Fac Upp Upp Res Res Acc Total Allies 1 | . . . . 1 . . . . . . . . Largest Group 1 | . . . . 1 1 . . . . . . . Highest-Rated Group 40 | . . . . 40 40 . . . . . . . Highest-Rated Ally 40 | . . . . 40 40 . . . . . . . Total Orders 1 | . . . . . . . 1 . . . . . EXPLORE 1 | . . . . . . . 1 . . . . . Ally Attacks . | . . . . . . . . . . . . . Total Damage . | . . . . . . . . . . . . . Kills . | . . . . . . . . . . . . . Allies Corrupted . | . . . . . . . . . . . . . Allies Melted . | . . . . . . . . . . . . . Intel | -11 -10 -9 -8 -7 -6 -5 -4 -4 -4 -3 -2 -1 ------- Run | Yrd Mat Mat Mat Fac Fac Fac Fac Upp Upp Res Res Acc Robot Analysis Total 1 | . . . 1 . . . . . . . . . Derelict Logs Recovered 1 | . . . . . . . . 1 . . . . Drone Launches 1 | . . . . . . . 1 . . . . . Drone Recoveries 1 | . . . . . . . 1 . . . . . Exploration | -11 -10 -9 -8 -7 -6 -5 -4 -4 -4 -3 -2 -1 ------------- Run | Yrd Mat Mat Mat Fac Fac Fac Fac Upp Upp Res Res Acc Turns Passed 7699 | 77 712 2318 1467 664 297 292 1023 133 8 423 124 161 Spaces Moved 7407 | 72 367 893 652 620 738 337 1164 486 17 1309 353 399 Core 147 | 19 . . 40 25 . . . . . . . 63 Treads 10 | . . 10 . . . . . . . . . . Legs 1473 | . 185 883 405 . . . . . . . . . Wheels 431 | 53 180 . 198 . . . . . . . . . Hover . | . . . . . . . . . . . . . Flight 5346 | . 2 . 9 595 738 337 1164 486 17 1309 353 336 Fastest Speed 13 | 50 80 120 95 27 22 26 17 26 25 13 20 20 Average Speed 61 | 84 114 192 161 30 24 26 21 26 25 21 20 31 Slowest Speed 400 | 200 255 320 400 100 108 29 104 26 26 113 23 50 Overloaded Moves 413 | . . . . . 233 3 30 . 3 106 38 . Propulsion Burnouts . | . . . . . . . . . . . . . Robots Hopped 96 | . . . . 5 13 32 2 . 2 27 4 11 Cave-ins Triggered . | . . . . . . . . . . . . . Exploration Rate (%) 26 | 4 43 66 37 9 16 6 19 70 7 35 16 20 Regions Visited 12 Branch Regions 2 Pre-discovered Areas 1 | . . . . . . . . 1 . . . . Known Exits Taken 2 | . . . . . . . . . . 1 1 . Unknown Exits Taken 10 | 1 1 1 1 1 1 1 1 1 1 . . . Scrap Searched 4 | . . . . . . . . 4 . . . . Spaces Dug . | . . . . . . . . . . . . . Terrain Destroyed 37 | . . . . . 18 . . . . 19 . . Melee . | . . . . . . . . . . . . . Projectile . | . . . . . . . . . . . . . AOE 37 | . . . . . 18 . . . . 19 . . Terrain Rammed . | . . . . . . . . . . . . . Walls Destroyed . | . . . . . . . . . . . . . Machines Disabled . | . . . . . . . . . . . . . Actions | -11 -10 -9 -8 -7 -6 -5 -4 -4 -4 -3 -2 -1 --------- Run | Yrd Mat Mat Mat Fac Fac Fac Fac Upp Upp Res Res Acc Total 9959 | 84 602 1272 938 1072 826 501 1925 493 17 1416 400 413 Wait 1924 | 1 175 153 127 409 73 171 688 1 3 80 39 4 Move 7219 | 71 366 892 651 609 711 280 1159 485 13 1260 345 377 Hop 80 | . . . . 5 13 24 2 . 1 21 3 11 Pick Up 98 | 6 6 16 18 9 3 6 16 3 . 10 5 . Fast Attach 93 | 6 3 15 28 2 5 2 9 1 . 18 2 2 Attach 43 | . 1 8 4 3 4 2 5 . . 7 4 5 Detach 17 | . . 3 2 3 2 1 . . . 4 . 2 Swap 68 | . 10 23 9 5 1 4 13 . . 3 . . Drop 138 | . 10 40 28 11 2 7 26 3 . 9 2 . Fire 255 | . 31 122 67 14 6 4 7 . . 4 . . Melee 4 | . . . 4 . . . . . . . . . Ram 6 | . . . . . . . . . . . . 6 Kick . | . . . . . . . . . . . . . Crush . | . . . . . . . . . . . . . Escape Stasis 6 | . . . . . 6 . . . . . . . Rewire 2 | . . . . 2 . . . . . . . . Trap . | . . . . . . . . . . . . . Miscellaneous 6 | . . . . . . . . . . . . 6 Route ------- -11/Scrapyard -10/Materials (discovered 2 exits: *Mat / [*Min]) -9/Materials (discovered 2 exits: *Mat / [*Min]) -8/Materials -7/Factory (discovered 2 exits: *Fac / [*Low]) -6/Factory -5/Factory -4/Factory -4/Upper Caves -4/Upper Caves -3/Research (discovered 3 exits: *Res x3) -2/Research -1/Access History --------- Turn | Location | Event 3 | -11/Scrapyard | Discovered new exit (range 16) 78 | -11/Scrapyard | Entered Materials 307 | -10/Materials | Build established: Mutant 463 | -10/Materials | Discovered new exit (range 11) 597 | -10/Materials | Discovered new exit (range 7) 778 | -10/Materials | Derelicts attacked the area 790 | -10/Materials | Entered another Materials area 790 | -9/Materials | Evolved 2 slots: Utility x2 1241 | -9/Materials | Build established: Hacker-Mutant 1313 | -9/Materials | Discovered new exit (range 12) 1869 | -9/Materials | Repaired Cooling System 1908 | -9/Materials | Repaired Deuterium Engine 2246 | -9/Materials | Core integrity fell below 50% 2537 | -9/Materials | Discovered new exit (range 16) 2950 | -9/Materials | Core integrity fell below 20% 3108 | -9/Materials | Entered another Materials area 3108 | -8/Materials | Evolved 2 slots: Utility x2 3155 | -8/Materials | Repaired Cooling System 3769 | -8/Materials | Core integrity fell below 50% 3824 | -8/Materials | Met 7R-MNS 3836 | -8/Materials | Lost 7 parts (1p3n1u2w) 4156 | -8/Materials | Discovered new exit (range 6) 4179 | -8/Materials | Repaired Med. Storage Unit 4300 | -8/Materials | Build established: Scavenger-Mutant 4575 | -8/Materials | Entered Factory 4575 | -7/Factory | Evolved 2 slots: Propulsion x2 4576 | -7/Factory | Caught up to 7R-MNS 4683 | -7/Factory | Garrison activated, responded to threat 4889 | -7/Factory | Discovered new exit (range 16) 4952 | -7/Factory | Build established: Hacker-Sprinter 4986 | -7/Factory | Discovered new exit (range 13) 4993 | -7/Factory | Fabricated Cld. Field Propulsion Drive? 5136 | -7/Factory | Fabricated Imp. Flight Unit (x1) 5239 | -7/Factory | Entered another Factory area 5239 | -6/Factory | Accompanied by 1 ally 5239 | -6/Factory | Evolved 2 slots: Propulsion x2 5240 | -6/Factory | Caught up to 7R-MNS 5277 | -6/Factory | Garrison activated, responded to threat 5448 | -6/Factory | Fabricated Cld. Field Propulsion Drive? 5533 | -6/Factory | Discovered new exit (range 14) 5536 | -6/Factory | Entered another Factory area 5536 | -5/Factory | Evolved 2 slots: Power x1, Utility x1 5537 | -5/Factory | Caught up to 7R-MNS 5740 | -5/Factory | Discovered new exit (range 14) 5828 | -5/Factory | Entered another Factory area 5828 | -4/Factory | Evolved 2 slots: Propulsion x2 5829 | -4/Factory | Caught up to 7R-MNS 6153 | -4/Factory | Build established: Scavenger-Sprinter 6717 | -4/Factory | Discovered new exit (range 11) 6739 | -4/Factory | 7R-MNS successfully reached the Upper Caves 6815 | -4/Factory | Lost 3 parts (1n1u1w) 6851 | -4/Factory | Entered Upper Caves 6983 | -4/Upper Caves | Discovered new exit (range 3) 6984 | -4/Upper Caves | Entered another Upper Caves area 6984 | -4/Upper Caves | Discovered new exit (range 13) 6992 | -4/Upper Caves | Entered Research 6992 | -3/Research | Evolved 2 slots: Power x1, Propulsion x1 7035 | -3/Research | Spotted B-86 Titan 7095 | -3/Research | Fabricated Cld. Field Propulsion Drive? 7102 | -3/Research | Fabricated Cld. Field Propulsion Drive? 7104 | -3/Research | Discovered new exit (range 8) 7179 | -3/Research | Lost 4 parts (1p1n1u1w) 7253 | -3/Research | Found Prototype Hackware 7253 | -3/Research | Identified Exp. Hacking Suite 7266 | -3/Research | Found Fusion Bomb Launcher 7282 | -3/Research | Search patrols dispatched 7349 | -3/Research | Identified exit to Research 7404 | -3/Research | Lost 5 parts (3n1u1w) 7415 | -3/Research | Entered another Research area 7415 | -2/Research | Evolved 2 slots: Propulsion x1, Utility x1 7464 | -2/Research | Repaired Broken Field Propulsion Drive 7472 | -2/Research | Spotted B-90 Cyclops 7480 | -2/Research | Spotted B-90 Cyclops 7537 | -2/Research | Discovered new exit (range 13) 7538 | -2/Research | Identified exit to Access 7539 | -2/Research | Entered Access 7539 | -1/Access | Evolved 2 slots: Propulsion x2 7555 | -1/Access | Spotted B-99 Colossus 7600 | -1/Access | Spotted B-99 Colossus 7635 | -1/Access | Lost 10 parts (2p6n2u) 7685 | -1/Access | Spotted B-99 Colossus 7687 | -1/Access | Core integrity fell below 50% 7690 | -1/Access | System corruption reached 10% 7693 | -1/Access | Spotted B-99 Colossus 7693 | -1/Access | Spotted B-99 Colossus 7696 | -1/Access | Core integrity fell below 20% 7700 | -1/Access | Destroyed by B-99 Colossus with Linear Accelerator Last Messages --------------- 07689_ Penetrated by Slug. 07689_ Adv. Weight Redist. System destroyed. 07689_ Penetrated by Slug. 07690_ P-80 Master resets P-80 Master, system corruption cleaned. 07692_ Knocked back. 07692_ Penetrated by Slug. 07692_ Slug penetrates Wall. 07693_ Penetrated by Slug. 07694_ Adv. Terrain Scan Processor destroyed. 07694_ Critical hit (Blast). 07694_ Knocked back. 07694_ Penetrated by Slug. 07694_ Imp. Hacking Suite destroyed. 07694_ Penetrated by Slug. 07694_ Acquired 1 matter. 07695_ Penetrated by Slug. 07697_ System corrupted: Matter fused (-9). 07697_ Penetrated by Slug. 07697_ Slug penetrates Wall. 07697_ Penetrated by Slug. Map ----- +----------------------------------------------------+ | ??? ???????????????????????????? ????????????? | | ####+#############################+###########???? | | ? | | ? | | #############/##### ""#####/##########????? | | ?????????? ??# ""#?# #????? | | ???????? #?# #?# #????? | | ?????# " #?# T#?# " *#????? | | ?????# """ #?# #?#"" """" #????? | | ????# G #?# #?#"" """"" /????? | | ????# """ #?# #?#"" """"" #????? | | #???# " #?""""""""""""?#T """" #????? | | #???# ? #??????????????#"" " #????? | | #???# ? #??????????????#"" #????? | | #???#####??###??????????????#"" #????? | | #???????????????????????????# #????? | | #???????????????????????????# #????? | | #???????????????????????????##########/###????? | | ??????????????????????????????????????# #??????? | | ????????????????????????????????????????# #??????? | | ????????????????????????????????????????# #??????? | | ????????????????????????????????????????# #??????? | | ?????????????????????????????????######## #??????? | | ?????????????????????????????????# #??????? | | ??????????????????#""""""""""#???# #####??? | | ??????????????????# @ #???# ! ## | | ??????????????????# BB BB #???# ==% + | | ??????????????????# BB BB #???# *%! ##?? | | ??????????????????# #?### == #??? | | ??????????????????# % #?# #### | | ??????????????????# #?# | | ??????????????????# #?# * | | ??????????????????#### ;;;;## | | ?????????????????????# % p p | | ?????????????????????# ! p | | ?????????????????????+ % % ########### | | ??????????????????? ; #] ???????? | | ???????????????? ; # ?????? | | ??????????????" # / #???? | | ????????????? | # % # #???? | | ???????????? ! # * # ]= #???? | | ????????????########?# + = #???? | | ?????????????????????+ ""## !#???? | | ?????????????????????# ]][ #? ? ?#???? | | ?????????????????????# ][ #??????????? | | ?????????????????????# ][ ###??????????? | | ?????????????????????# ######+##+#????????????? | | ?????????????????????# ???????????????????????? | | ?????????????????????# ???????????????????????? | | ?????????????????????? ???????????????????????? | +----------------------------------------------------+ Best States ------------- Heat Dissipation 96 Energy Generation 54 Energy Capacity 350 Matter Stores 300 Matter Capacity 300 Sight Range 16 Terrain Scan Density 210 ECM Strength 1 Jamming Range 16 Power Amplification 30 Additional Mass Support 9 Armor Coverage 150 Phase Shifting 15 Evasion (%) 82 Recoil Reduction 2 Offensive Hacking 40 Item Schematics ----------------- Imp. Flight Unit | -9/Materials | Scanalyzed Rocket Launcher | -9/Materials | Scanalyzed Hacking Suite | -9/Materials | Scanalyzed Cld. Field Propulsion Drive | -6/Factory | Scanalyzed Robot Schematics ------------------ None Fabricated ------------ Cld. Field Propulsion Drive | x1 | -7/Factory | Preloaded Imp. Flight Unit | x1 | -7/Factory Cld. Field Propulsion Drive | x1 | -6/Factory Cld. Field Propulsion Drive | x1 | -3/Research Cld. Field Propulsion Drive | x1 | -3/Research Alien Tech Used ----------------- None Achievements -------------- None Challenges ------------ None Game ------ Seed BombGhostInverter Manual? 0 Play Time 01:26:26 Cumulative 158.0 hours Start 2024.05.07 @ 17:48:00 End 2024.05.08 @ 14:02:02 Sessions 2 Manual Loads 0 Difficulty Rogue Special Mode None Game No. 314 Rogue 314 Adventurer 0 Explorer 0 Win Type - Total 0 Types 0/0/0/0/0/0/0/0/0 Lore% 39 Gallery% 59 Achievement% 42 Wizard Run 0 Options --------- Layout 0 ASCII 0 Keyboard 1 Movement Numpad Keybinds 0 Fullscreen 2 Font 18/X11 Map View 76x50 Zoom Use 0% Tactical HUD 1 Map Filters NONE Filters NONE Steam 1 RUN: cd647cc2-365b-4215-840b-cf6a10de7a14